[Event "Late-Titled-Tuesday-Blitz-May-07-2024"]
[Site "Chess.com"]
[Date "2024.05.07"]
[Round "11"]
[White "Franmu14"]
[Black "bazar-wokzal"]
[Result "1/2-1/2"]
[WhiteElo "2739"]
[BlackElo "2616"]
[TimeControl "180+1"]
[EndTime "16:07:52 PDT"]
[Termination "Game drawn by stalemate"]

1. e4 {[%clk 0:03:00.9]} 1... Nc6 {[%clk 0:02:47.4]} 2. Nc3 {[%clk 0:02:58.3]}
2... Nf6 {[%clk 0:02:46.4]} 3. Nf3 {[%clk 0:02:55.7]} 3... d5 {[%clk 0:02:45.6]}
4. exd5 {[%clk 0:02:56.2]} 4... Nxd5 {[%clk 0:02:44.7]} 5. d4 {[%clk 0:02:57.1]}
5... Bg4 {[%clk 0:02:43.9]} 6. Bb5 {[%clk 0:02:56.1]} 6... Nxc3 {[%clk
0:02:33.7]} 7. bxc3 {[%clk 0:02:57]} 7... Qd5 {[%clk 0:02:33.2]} 8. Be2 {[%clk
0:02:54.4]} 8... e5 {[%clk 0:02:29]} 9. h3 {[%clk 0:02:51.9]} 9... Bxf3 {[%clk
0:02:28]} 10. Bxf3 {[%clk 0:02:51.7]} 10... e4 {[%clk 0:02:28]} 11. Be2 {[%clk
0:02:46.3]} 11... Bd6 {[%clk 0:02:23.2]} 12. Be3 {[%clk 0:02:42.6]} 12... O-O
{[%clk 0:02:21.4]} 13. Rb1 {[%clk 0:02:37.6]} 13... Rab8 {[%clk 0:02:16.5]} 14.
O-O {[%clk 0:02:35.3]} 14... b5 {[%clk 0:02:11.5]} 15. Rxb5 {[%clk 0:02:31.4]}
15... Rxb5 {[%clk 0:02:08.8]} 16. c4 {[%clk 0:02:32]} 16... Qe6 {[%clk
0:01:56.8]} 17. cxb5 {[%clk 0:02:31.2]} 17... Na5 {[%clk 0:01:55.5]} 18. Qd2
{[%clk 0:02:06.3]} 18... Qxa2 {[%clk 0:01:49.5]} 19. Qc3 {[%clk 0:02:03.6]}
19... Qa3 {[%clk 0:01:41.1]} 20. Qxa3 {[%clk 0:01:58.9]} 20... Bxa3 {[%clk
0:01:41.1]} 21. Ra1 {[%clk 0:01:49.8]} 21... Bb4 {[%clk 0:01:39.2]} 22. c4
{[%clk 0:01:32.2]} 22... f5 {[%clk 0:01:35]} 23. g3 {[%clk 0:01:30.6]} 23... g5
{[%clk 0:01:23.6]} 24. d5 {[%clk 0:01:27.5]} 24... f4 {[%clk 0:01:18.3]} 25.
Bxa7 {[%clk 0:01:25.3]} 25... Nb3 {[%clk 0:01:09.9]} 26. Rb1 {[%clk 0:01:23.1]}
26... Bc5 {[%clk 0:01:09.7]} 27. Bxc5 {[%clk 0:01:19.1]} 27... Nxc5 {[%clk
0:01:10.6]} 28. Ra1 {[%clk 0:01:13.2]} 28... Kg7 {[%clk 0:00:57]} 29. Ra7 {[%clk
0:01:11.7]} 29... Rf7 {[%clk 0:00:57.4]} 30. Bg4 {[%clk 0:00:57.2]} 30... Kf6
{[%clk 0:00:50.2]} 31. Be6 {[%clk 0:00:41.1]} 31... Nxe6 {[%clk 0:00:46.2]} 32.
Ra6 {[%clk 0:00:41.1]} 32... Re7 {[%clk 0:00:44.7]} 33. c5 {[%clk 0:00:21.4]}
33... Ke5 {[%clk 0:00:39]} 34. dxe6 {[%clk 0:00:20.7]} 34... Rxe6 {[%clk
0:00:17]} 35. Ra7 {[%clk 0:00:20.6]} 35... c6 {[%clk 0:00:13.3]} 36. gxf4+
{[%clk 0:00:19.9]} 36... gxf4 {[%clk 0:00:12.3]} 37. b6 {[%clk 0:00:20.4]} 37...
Re8 {[%clk 0:00:10.1]} 38. Rxh7 {[%clk 0:00:19.6]} 38... Kd5 {[%clk 0:00:09.7]}
39. Rh5+ {[%clk 0:00:19.8]} 39... Kd4 {[%clk 0:00:09.5]} 40. Rf5 {[%clk
0:00:19.6]} 40... f3 {[%clk 0:00:09.3]} 41. b7 {[%clk 0:00:17]} 41... Rb8 {[%clk
0:00:08.5]} 42. Rf7 {[%clk 0:00:16.9]} 42... Kxc5 {[%clk 0:00:07.5]} 43. h4
{[%clk 0:00:17.3]} 43... Kd4 {[%clk 0:00:06.8]} 44. h5 {[%clk 0:00:17.4]} 44...
c5 {[%clk 0:00:07.2]} 45. Kf1 {[%clk 0:00:17.4]} 45... c4 {[%clk 0:00:07.6]} 46.
Ke1 {[%clk 0:00:18]} 46... c3 {[%clk 0:00:08]} 47. Kd1 {[%clk 0:00:18.4]} 47...
e3 {[%clk 0:00:08.1]} 48. fxe3+ {[%clk 0:00:18.3]} 48... Kxe3 {[%clk 0:00:08.3]}
49. h6 {[%clk 0:00:18.7]} 49... f2 {[%clk 0:00:08.4]} 50. h7 {[%clk 0:00:19.1]}
50... Rxb7 {[%clk 0:00:08.6]} 51. Rxf2 {[%clk 0:00:14.1]} 51... Rxh7 {[%clk
0:00:06.5]} 52. Rg2 {[%clk 0:00:14.5]} 52... Kd3 {[%clk 0:00:05.4]} 53. Rg3+
{[%clk 0:00:14.4]} 53... Kc4 {[%clk 0:00:05.9]} 54. Rg8 {[%clk 0:00:14]} 54...
Rh1+ {[%clk 0:00:04.7]} 55. Kc2 {[%clk 0:00:14.4]} 55... Rh2+ {[%clk 0:00:05.6]}
56. Kc1 {[%clk 0:00:14.9]} 56... Rh5 {[%clk 0:00:04.7]} 57. Rc8+ {[%clk
0:00:14.6]} 57... Rc5 {[%clk 0:00:05.3]} 58. Rxc5+ {[%clk 0:00:13.6]} 58... Kxc5
{[%clk 0:00:04.6]} 59. Kc2 {[%clk 0:00:12.4]} 59... Kc4 {[%clk 0:00:05.5]} 60.
Kc1 {[%clk 0:00:10.5]} 60... Kd3 {[%clk 0:00:06.4]} 61. Kd1 {[%clk 0:00:10.8]}
61... c2+ {[%clk 0:00:07.3]} 62. Kc1 {[%clk 0:00:11.1]} 62... Kc3 {[%clk
0:00:08.2]} 1/2-1/2

[Event "Late-Titled-Tuesday-Blitz-May-07-2024"]
[Site "Chess.com"]
[Date "2024.05.07"]
[Round "11"]
[White "ozates"]
[Black "kingofthenil"]
[Result "0-1"]
[WhiteElo "2653"]
[BlackElo "2836"]
[TimeControl "180+1"]
[EndTime "16:08:02 PDT"]
[Termination "kingofthenil won by resignation"]

1. e4 {[%clk 0:03:00.9]} 1... Nc6 {[%clk 0:03:00.4]} 2. Nf3 {[%clk 0:03:00.7]}
2... d5 {[%clk 0:03:01.3]} 3. exd5 {[%clk 0:03:00.4]} 3... Qxd5 {[%clk 0:03:02]}
4. Nc3 {[%clk 0:03:01.1]} 4... Qh5 {[%clk 0:03:02.5]} 5. Nb5 {[%clk 0:03:01]}
5... Kd8 {[%clk 0:03:02.6]} 6. d4 {[%clk 0:02:53.7]} 6... Bg4 {[%clk 0:03:01.5]}
7. c4 {[%clk 0:02:51.3]} 7... e6 {[%clk 0:02:42.5]} 8. Be2 {[%clk 0:02:41.8]}
8... Nf6 {[%clk 0:02:37.1]} 9. Bf4 {[%clk 0:02:37.1]} 9... Bb4+ {[%clk
0:02:36.3]} 10. Kf1 {[%clk 0:02:36.9]} 10... Rc8 {[%clk 0:01:59.7]} 11. a3
{[%clk 0:02:27.1]} 11... Be7 {[%clk 0:01:58.1]} 12. Ne5 {[%clk 0:02:06.8]} 12...
Bxe2+ {[%clk 0:01:53.7]} 13. Qxe2 {[%clk 0:02:07.7]} 13... Qxe2+ {[%clk
0:01:54.1]} 14. Kxe2 {[%clk 0:02:06.8]} 14... Nxe5 {[%clk 0:01:35.5]} 15. dxe5
{[%clk 0:02:06.4]} 15... Nd7 {[%clk 0:01:31.3]} 16. Rad1 {[%clk 0:02:06.2]}
16... a6 {[%clk 0:01:29.2]} 17. Nc3 {[%clk 0:02:02.8]} 17... Ke8 {[%clk
0:01:25.1]} 18. Ne4 {[%clk 0:01:59.8]} 18... Nb6 {[%clk 0:01:03.6]} 19. Rc1
{[%clk 0:01:47.8]} 19... f5 {[%clk 0:00:58.7]} 20. exf6 {[%clk 0:01:44.4]} 20...
gxf6 {[%clk 0:00:58.6]} 21. Rhe1 {[%clk 0:01:43.5]} 21... Kf7 {[%clk 0:00:58.1]}
22. Be3 {[%clk 0:01:36]} 22... Rhd8 {[%clk 0:00:50.9]} 23. Rc2 {[%clk
0:01:21.9]} 23... Nd7 {[%clk 0:00:40.3]} 24. f4 {[%clk 0:01:20]} 24... Nb8
{[%clk 0:00:39.8]} 25. Rf1 {[%clk 0:01:00.5]} 25... Nc6 {[%clk 0:00:40]} 26. Rf3
{[%clk 0:00:52.7]} 26... Nd4+ {[%clk 0:00:39.8]} 27. Bxd4 {[%clk 0:00:53.1]}
27... Rxd4 {[%clk 0:00:40.7]} 28. Nf2 {[%clk 0:00:53.7]} 28... Rcd8 {[%clk
0:00:40]} 29. Nd3 {[%clk 0:00:46.5]} 29... Re4+ {[%clk 0:00:39.4]} 30. Kf2
{[%clk 0:00:42.4]} 30... Rdd4 {[%clk 0:00:39.5]} 31. c5 {[%clk 0:00:36]} 31...
Rc4 {[%clk 0:00:39.3]} 32. Rxc4 {[%clk 0:00:33.9]} 32... Rxc4 {[%clk 0:00:40.2]}
33. b4 {[%clk 0:00:34.3]} 33... a5 {[%clk 0:00:38.5]} 34. g4 {[%clk 0:00:31.1]}
34... Kg7 {[%clk 0:00:21.8]} 35. h4 {[%clk 0:00:29.8]} 35... Rc3 {[%clk
0:00:16.9]} 36. Re3 {[%clk 0:00:23.3]} 36... Rxa3 {[%clk 0:00:15.6]} 37. Rxe6
{[%clk 0:00:23.2]} 37... Kf7 {[%clk 0:00:14.1]} 38. Re3 {[%clk 0:00:21.7]} 38...
axb4 {[%clk 0:00:14.8]} 39. Kf3 {[%clk 0:00:18.9]} 39... Rc3 {[%clk 0:00:15.2]}
40. g5 {[%clk 0:00:11.9]} 40... Bxc5 {[%clk 0:00:14.1]} 41. Nxc5 {[%clk
0:00:08.7]} 41... Rxc5 {[%clk 0:00:15]} 42. Rd3 {[%clk 0:00:09.3]} 42... Rc3
{[%clk 0:00:14.9]} 43. Ke4 {[%clk 0:00:08.8]} 43... Rxd3 {[%clk 0:00:14.4]} 44.
Kxd3 {[%clk 0:00:09.7]} 44... fxg5 {[%clk 0:00:12.4]} 45. hxg5 {[%clk
0:00:06.1]} 45... Ke6 {[%clk 0:00:12.2]} 46. Ke4 {[%clk 0:00:05.5]} 46... b3
{[%clk 0:00:11.8]} 47. f5+ {[%clk 0:00:05.9]} 47... Ke7 {[%clk 0:00:11.8]} 48.
Kd3 {[%clk 0:00:05.9]} 48... c5 {[%clk 0:00:12.2]} 49. Kc3 {[%clk 0:00:05.6]}
49... c4 {[%clk 0:00:12.7]} 50. Kb2 {[%clk 0:00:04.6]} 50... b6 {[%clk
0:00:12.1]} 51. Kc3 {[%clk 0:00:04.8]} 51... b5 {[%clk 0:00:12.5]} 52. Kb2
{[%clk 0:00:05.3]} 52... b4 {[%clk 0:00:13]} 53. Kb1 {[%clk 0:00:05.9]} 53... c3
{[%clk 0:00:13.2]} 54. Kc1 {[%clk 0:00:06.1]} 54... Kd6 {[%clk 0:00:12.1]} 55.
Kb1 {[%clk 0:00:04.7]} 55... Ke5 {[%clk 0:00:12.2]} 56. f6 {[%clk 0:00:01.3]}
56... Ke6 {[%clk 0:00:12.6]} 57. Kc1 {[%clk 0:00:01.6]} 57... h6 {[%clk
0:00:12.5]} 58. gxh6 {[%clk 0:00:01.9]} 58... Kxf6 {[%clk 0:00:13]} 59. h7
{[%clk 0:00:02.4]} 59... Kg7 {[%clk 0:00:13.4]} 60. Kb1 {[%clk 0:00:02.8]} 60...
Kxh7 {[%clk 0:00:13.7]} 61. Kc1 {[%clk 0:00:03.7]} 61... Kg6 {[%clk 0:00:14.2]}
62. Kb1 {[%clk 0:00:04.6]} 62... Kf6 {[%clk 0:00:14.3]} 63. Kc1 {[%clk
0:00:05.5]} 63... Ke6 {[%clk 0:00:15.2]} 64. Kb1 {[%clk 0:00:06.3]} 64... Kd6
{[%clk 0:00:16.1]} 65. Kc1 {[%clk 0:00:07.2]} 65... Kc6 {[%clk 0:00:17]} 66. Kb1
{[%clk 0:00:08.1]} 66... Kb6 {[%clk 0:00:17.9]} 67. Kc1 {[%clk 0:00:09]} 67...
Ka6 {[%clk 0:00:18.8]} 68. Kb1 {[%clk 0:00:09.6]} 68... Ka7 {[%clk 0:00:19.7]}
69. Kc1 {[%clk 0:00:10.5]} 69... Kb7 {[%clk 0:00:20.6]} 70. Kb1 {[%clk
0:00:11.4]} 70... Kc7 {[%clk 0:00:21.5]} 71. Kc1 {[%clk 0:00:12.3]} 71... Kd7
{[%clk 0:00:22.4]} 72. Kb1 {[%clk 0:00:13.2]} 72... Ke7 {[%clk 0:00:23.3]} 73.
Kc1 {[%clk 0:00:14.1]} 73... Kf7 {[%clk 0:00:24.2]} 74. Kb1 {[%clk 0:00:15]}
74... Kg7 {[%clk 0:00:25.1]} 75. Kc1 {[%clk 0:00:15.9]} 75... Kh7 {[%clk
0:00:26]} 76. Kb1 {[%clk 0:00:16.8]} 76... Kh6 {[%clk 0:00:26.9]} 77. Kc1 {[%clk
0:00:17.7]} 77... Kh5 {[%clk 0:00:27.8]} 78. Kb1 {[%clk 0:00:18.6]} 78... Kg4
{[%clk 0:00:28.7]} 79. Kc1 {[%clk 0:00:19.5]} 79... Kf3 {[%clk 0:00:29.6]} 80.
Kb1 {[%clk 0:00:20.4]} 80... b2 {[%clk 0:00:29.9]} 0-1

[Event "Late-Titled-Tuesday-Blitz-May-07-2024"]
[Site "Chess.com"]
[Date "2024.05.07"]
[Round "11"]
[White "JaackCamel"]
[Black "rionelG"]
[Result "1-0"]
[WhiteElo "2209"]
[BlackElo "2255"]
[TimeControl "180+1"]
[EndTime "16:08:13 PDT"]
[Termination "JaackCamel won by checkmate"]

1. d4 {[%clk 0:03:00.9]} 1... d5 {[%clk 0:02:59.8]} 2. c4 {[%clk 0:03:01.1]}
2... e6 {[%clk 0:03:00.4]} 3. Nc3 {[%clk 0:03:00.7]} 3... Nf6 {[%clk 0:03:00.8]}
4. cxd5 {[%clk 0:03:00.9]} 4... exd5 {[%clk 0:03:00.8]} 5. Bg5 {[%clk
0:03:00.9]} 5... c6 {[%clk 0:03:01.2]} 6. e3 {[%clk 0:03:00.9]} 6... Be7 {[%clk
0:02:58.2]} 7. Bd3 {[%clk 0:03:00.5]} 7... h6 {[%clk 0:02:57.4]} 8. Bh4 {[%clk
0:03:00.3]} 8... Ne4 {[%clk 0:02:54.6]} 9. Bxe7 {[%clk 0:02:52.8]} 9... Qxe7
{[%clk 0:02:55.5]} 10. Bxe4 {[%clk 0:02:51.2]} 10... dxe4 {[%clk 0:02:56.4]} 11.
Nge2 {[%clk 0:02:47]} 11... O-O {[%clk 0:02:52.2]} 12. O-O {[%clk 0:02:46.5]}
12... Bg4 {[%clk 0:02:46.4]} 13. h3 {[%clk 0:02:38.8]} 13... Bh5 {[%clk
0:02:44.6]} 14. Qb3 {[%clk 0:02:37.8]} 14... b6 {[%clk 0:02:26]} 15. Nf4 {[%clk
0:02:35.8]} 15... Qg5 {[%clk 0:02:21]} 16. Nxe4 {[%clk 0:02:32.5]} 16... Qh4
{[%clk 0:02:20.1]} 17. Ng3 {[%clk 0:01:54]} 17... g6 {[%clk 0:02:09]} 18. Ngxh5
{[%clk 0:01:32.5]} 18... gxh5 {[%clk 0:02:09.9]} 19. Rac1 {[%clk 0:01:29.1]}
19... Kh8 {[%clk 0:01:54.2]} 20. d5 {[%clk 0:01:27.1]} 20... cxd5 {[%clk
0:01:45.6]} 21. Qxd5 {[%clk 0:01:23.4]} 21... Na6 {[%clk 0:01:44.7]} 22. Rc6
{[%clk 0:01:15.8]} 22... Qg5 {[%clk 0:01:38.5]} 23. Qd4+ {[%clk 0:01:11.8]}
23... Kg8 {[%clk 0:01:33.6]} 24. b4 {[%clk 0:00:59.9]} 24... Rad8 {[%clk
0:01:30.1]} 25. Qc3 {[%clk 0:00:57.6]} 25... Nb8 {[%clk 0:01:28.9]} 26. Rc7
{[%clk 0:00:50]} 26... a6 {[%clk 0:01:02.7]} 27. Rc1 {[%clk 0:00:49.3]} 27...
Nd7 {[%clk 0:01:02.3]} 28. a4 {[%clk 0:00:38.3]} 28... Ne5 {[%clk 0:00:56.1]}
29. Kh2 {[%clk 0:00:34.3]} 29... Rde8 {[%clk 0:00:48.2]} 30. a5 {[%clk
0:00:33.8]} 30... bxa5 {[%clk 0:00:47.4]} 31. bxa5 {[%clk 0:00:31.7]} 31... Qh4
{[%clk 0:00:44.5]} 32. Rc2 {[%clk 0:00:18.1]} 32... Ng4+ {[%clk 0:00:39.3]} 33.
Kg1 {[%clk 0:00:16.9]} 33... Ne5 {[%clk 0:00:39.8]} 34. Rc5 {[%clk 0:00:16]}
34... Qg5 {[%clk 0:00:38.2]} 35. Kh2 {[%clk 0:00:15.4]} 35... Qg7 {[%clk
0:00:32]} 36. Qd4 {[%clk 0:00:12.3]} 36... Rd8 {[%clk 0:00:30.7]} 37. Qe4 {[%clk
0:00:12.1]} 37... Rde8 {[%clk 0:00:18.5]} 38. Qf5 {[%clk 0:00:12]} 38... Ng6
{[%clk 0:00:16.9]} 39. Nxh5 {[%clk 0:00:11.7]} 39... Qh8 {[%clk 0:00:16.7]} 40.
Nf6+ {[%clk 0:00:11.2]} 40... Kg7 {[%clk 0:00:17.3]} 41. Nxe8+ {[%clk
0:00:10.5]} 41... Rxe8 {[%clk 0:00:17.3]} 42. Rc7 {[%clk 0:00:10.2]} 42... Rf8
{[%clk 0:00:16.7]} 43. Ra7 {[%clk 0:00:09.7]} 43... Kg8 {[%clk 0:00:16.9]} 44.
Rcc7 {[%clk 0:00:09.3]} 44... Qg7 {[%clk 0:00:16.4]} 45. g3 {[%clk 0:00:07.9]}
45... Nh8 {[%clk 0:00:12.8]} 46. h4 {[%clk 0:00:07.8]} 46... Qb2 {[%clk
0:00:11.6]} 47. Qg4+ {[%clk 0:00:07.6]} 47... Kh7 {[%clk 0:00:11]} 48. Qf5+
{[%clk 0:00:07.3]} 48... Kg8 {[%clk 0:00:11]} 49. h5 {[%clk 0:00:07.2]} 49...
Qe2 {[%clk 0:00:09.9]} 50. Qf4 {[%clk 0:00:06.5]} 50... Qxh5+ {[%clk 0:00:08.9]}
51. Kg2 {[%clk 0:00:06.9]} 51... Qd1 {[%clk 0:00:08.3]} 52. Rc6 {[%clk
0:00:06.4]} 52... Qd5+ {[%clk 0:00:08.4]} 53. Qf3 {[%clk 0:00:06]} 53... Qxa5
{[%clk 0:00:08.2]} 54. Raxa6 {[%clk 0:00:05.8]} 54... Ng6 {[%clk 0:00:07.5]} 55.
Rxa5 {[%clk 0:00:05.8]} 55... Ne5 {[%clk 0:00:06.7]} 56. Qf5 {[%clk 0:00:04.9]}
56... Nxc6 {[%clk 0:00:06.3]} 57. Ra6 {[%clk 0:00:04.3]} 57... Ne7 {[%clk
0:00:06.5]} 58. Qf6 {[%clk 0:00:04]} 58... Ng6 {[%clk 0:00:06.8]} 59. Ra5 {[%clk
0:00:03.1]} 59... Kh7 {[%clk 0:00:06.6]} 60. Ra7 {[%clk 0:00:02.7]} 60... Kg8
{[%clk 0:00:06.3]} 61. f4 {[%clk 0:00:02.7]} 61... Nh8 {[%clk 0:00:05.4]} 62.
Qxh6 {[%clk 0:00:02.3]} 62... Ng6 {[%clk 0:00:05.8]} 63. f5 {[%clk 0:00:02.1]}
63... Nh8 {[%clk 0:00:06.7]} 64. f6 {[%clk 0:00:02]} 64... Re8 {[%clk
0:00:06.9]} 65. Qg7# {[%clk 0:00:02.3]} 1-0

[Event "Late-Titled-Tuesday-Blitz-May-07-2024"]
[Site "Chess.com"]
[Date "2024.05.07"]
[Round "11"]
[White "Tibmat"]
[Black "Akhayan"]
[Result "0-1"]
[WhiteElo "2654"]
[BlackElo "2440"]
[TimeControl "180+1"]
[EndTime "16:08:14 PDT"]
[Termination "Akhayan won by checkmate"]

1. c4 {[%clk 0:03:00.9]} 1... e5 {[%clk 0:02:58.8]} 2. g3 {[%clk 0:02:59.1]}
2... Nf6 {[%clk 0:02:59.1]} 3. Bg2 {[%clk 0:02:56.9]} 3... c6 {[%clk 0:02:59.6]}
4. d4 {[%clk 0:02:49.7]} 4... exd4 {[%clk 0:02:59.1]} 5. Qxd4 {[%clk 0:02:48.5]}
5... d5 {[%clk 0:02:59.6]} 6. Nf3 {[%clk 0:02:48.4]} 6... Be6 {[%clk 0:02:58.4]}
7. cxd5 {[%clk 0:02:47]} 7... cxd5 {[%clk 0:02:58.6]} 8. O-O {[%clk 0:02:47.5]}
8... Nc6 {[%clk 0:02:59.2]} 9. Qa4 {[%clk 0:02:46.3]} 9... Bc5 {[%clk
0:02:57.6]} 10. Nc3 {[%clk 0:02:42.4]} 10... O-O {[%clk 0:02:56.5]} 11. Bg5
{[%clk 0:02:36.8]} 11... h6 {[%clk 0:02:52.4]} 12. Bxf6 {[%clk 0:02:37.1]} 12...
Qxf6 {[%clk 0:02:52.7]} 13. Rad1 {[%clk 0:02:38]} 13... Bb6 {[%clk 0:02:42.6]}
14. Qb5 {[%clk 0:02:30.7]} 14... Rfe8 {[%clk 0:02:32.2]} 15. Na4 {[%clk
0:02:18.2]} 15... Ne5 {[%clk 0:02:00.9]} 16. Nxe5 {[%clk 0:02:02.8]} 16... Qxe5
{[%clk 0:02:00.7]} 17. e3 {[%clk 0:02:00.2]} 17... Red8 {[%clk 0:01:44.1]} 18.
Nxb6 {[%clk 0:01:50.6]} 18... axb6 {[%clk 0:01:44.2]} 19. a3 {[%clk 0:01:51.5]}
19... Rd6 {[%clk 0:01:20.1]} 20. Rd4 {[%clk 0:01:48.4]} 20... Rad8 {[%clk
0:01:19.6]} 21. Rfd1 {[%clk 0:01:48.1]} 21... Qh5 {[%clk 0:01:14.3]} 22. e4
{[%clk 0:01:10.2]} 22... Bg4 {[%clk 0:01:08.9]} 23. Rc1 {[%clk 0:00:28.5]} 23...
Be2 {[%clk 0:00:55.8]} 24. Qb4 {[%clk 0:00:22.3]} 24... Bf3 {[%clk 0:00:47.5]}
25. exd5 {[%clk 0:00:20]} 25... Bxg2 {[%clk 0:00:45.9]} 26. Kxg2 {[%clk
0:00:20.6]} 26... Rxd5 {[%clk 0:00:43]} 27. Rxd5 {[%clk 0:00:18.2]} 27... Qxd5+
{[%clk 0:00:42.4]} 28. Kg1 {[%clk 0:00:19]} 28... b5 {[%clk 0:00:41.3]} 29. Qc5
{[%clk 0:00:15.4]} 29... Qd2 {[%clk 0:00:35.6]} 30. Qc3 {[%clk 0:00:14.4]} 30...
Qd5 {[%clk 0:00:34.5]} 31. h4 {[%clk 0:00:13]} 31... h5 {[%clk 0:00:33.4]} 32.
Re1 {[%clk 0:00:12.6]} 32... g6 {[%clk 0:00:31.9]} 33. Qe5 {[%clk 0:00:12.6]}
33... Qd2 {[%clk 0:00:26.9]} 34. Kg2 {[%clk 0:00:06.7]} 34... b4 {[%clk
0:00:26.3]} 35. Re2 {[%clk 0:00:06]} 35... Qd1 {[%clk 0:00:22.1]} 36. axb4
{[%clk 0:00:05.2]} 36... Rc8 {[%clk 0:00:17.3]} 37. Qe3 {[%clk 0:00:01.5]} 37...
Rc1 {[%clk 0:00:14.1]} 38. Qe8+ {[%clk 0:00:01.4]} 38... Kg7 {[%clk 0:00:12.7]}
39. Qe5+ {[%clk 0:00:02]} 39... Kh7 {[%clk 0:00:13]} 40. Kf3 {[%clk 0:00:02.4]}
40... Qh1+ {[%clk 0:00:10.7]} 41. Ke3 {[%clk 0:00:02.6]} 41... Qc6 {[%clk
0:00:06.8]} 42. Qf4 {[%clk 0:00:02.5]} 42... Qb6+ {[%clk 0:00:06.4]} 43. Kf3
{[%clk 0:00:02.6]} 43... Qc6+ {[%clk 0:00:05.6]} 44. Qe4 {[%clk 0:00:03.2]}
44... Qd7 {[%clk 0:00:04.5]} 45. Kg2 {[%clk 0:00:03.4]} 45... Qd1 {[%clk
0:00:02.7]} 46. Kf3 {[%clk 0:00:03.3]} 46... Qh1+ {[%clk 0:00:02.5]} 47. Ke3
{[%clk 0:00:03.9]} 47... Qd1 {[%clk 0:00:02.3]} 48. Qf4 {[%clk 0:00:03.7]} 48...
Qd5 {[%clk 0:00:00.9]} 49. Qe4 {[%clk 0:00:03.1]} 49... Qb3+ {[%clk 0:00:01.3]}
50. Kf4 {[%clk 0:00:03.5]} 50... Rc4 {[%clk 0:00:01.7]} 51. Kg5 {[%clk
0:00:02.7]} 51... Rxe4 {[%clk 0:00:02.1]} 52. Rxe4 {[%clk 0:00:03.4]} 52... Qxb2
{[%clk 0:00:02.5]} 53. Kf4 {[%clk 0:00:03.7]} 53... Qc1+ {[%clk 0:00:03]} 54.
Ke5 {[%clk 0:00:03.2]} 54... Qa1+ {[%clk 0:00:02.2]} 55. Kd5 {[%clk 0:00:02]}
55... Kg7 {[%clk 0:00:02.7]} 56. Rf4 {[%clk 0:00:02.5]} 56... Qa2+ {[%clk
0:00:03.2]} 57. Kc5 {[%clk 0:00:02.9]} 57... Qc2+ {[%clk 0:00:02.6]} 58. Kb6
{[%clk 0:00:03.8]} 58... Qc6+ {[%clk 0:00:02.9]} 59. Ka5 {[%clk 0:00:03.6]}
59... Qa6# {[%clk 0:00:03.1]} 0-1

[Event "Late-Titled-Tuesday-Blitz-May-07-2024"]
[Site "Chess.com"]
[Date "2024.05.07"]
[Round "11"]
[White "Cambek64"]
[Black "PapaieDudu"]
[Result "0-1"]
[WhiteElo "2505"]
[BlackElo "2386"]
[TimeControl "180+1"]
[EndTime "16:08:14 PDT"]
[Termination "PapaieDudu won on time"]

1. e4 {[%clk 0:01:14.7]} 1... c5 {[%clk 0:03:00.2]} 2. Nc3 {[%clk 0:01:12.2]}
2... a6 {[%clk 0:02:59]} 3. a4 {[%clk 0:01:11.1]} 3... e6 {[%clk 0:02:57.3]} 4.
f4 {[%clk 0:01:09.3]} 4... d5 {[%clk 0:02:57.4]} 5. Nf3 {[%clk 0:01:09.3]} 5...
d4 {[%clk 0:02:57.1]} 6. Nb1 {[%clk 0:01:08.3]} 6... Nf6 {[%clk 0:02:58]} 7. d3
{[%clk 0:01:07]} 7... Be7 {[%clk 0:02:57.9]} 8. Nbd2 {[%clk 0:01:07.4]} 8... O-O
{[%clk 0:02:57.7]} 9. Nc4 {[%clk 0:01:07.4]} 9... b6 {[%clk 0:02:57.6]} 10. g3
{[%clk 0:01:06]} 10... Bb7 {[%clk 0:02:57.8]} 11. Bg2 {[%clk 0:01:06.1]} 11...
Nc6 {[%clk 0:02:57.9]} 12. O-O {[%clk 0:01:05.9]} 12... Re8 {[%clk 0:02:58.6]}
13. h3 {[%clk 0:01:05.7]} 13... b5 {[%clk 0:02:59.2]} 14. Ncd2 {[%clk
0:01:03.7]} 14... c4 {[%clk 0:02:58]} 15. g4 {[%clk 0:01:02.5]} 15... cxd3
{[%clk 0:02:55.9]} 16. cxd3 {[%clk 0:01:03.1]} 16... Nb4 {[%clk 0:02:56.4]} 17.
Nb3 {[%clk 0:01:02.4]} 17... bxa4 {[%clk 0:02:44.8]} 18. Rxa4 {[%clk 0:01:01.1]}
18... Bc6 {[%clk 0:02:44.7]} 19. Ra1 {[%clk 0:00:59.1]} 19... Bb5 {[%clk
0:02:43.9]} 20. Ne1 {[%clk 0:00:57.5]} 20... Nd7 {[%clk 0:02:38]} 21. Rf3 {[%clk
0:00:57.3]} 21... Nc5 {[%clk 0:02:37]} 22. Bf1 {[%clk 0:00:55.5]} 22... Qb6
{[%clk 0:02:22.4]} 23. Nxc5 {[%clk 0:00:54.7]} 23... Qxc5 {[%clk 0:02:18.2]} 24.
Bd2 {[%clk 0:00:53.8]} 24... Rec8 {[%clk 0:02:13]} 25. Rc1 {[%clk 0:00:48.6]}
25... Qb6 {[%clk 0:02:04.7]} 26. Be2 {[%clk 0:00:48.9]} 26... Na2 {[%clk
0:01:54.1]} 27. Rxc8+ {[%clk 0:00:43.8]} 27... Rxc8 {[%clk 0:01:53.6]} 28. Qa1
{[%clk 0:00:44.1]} 28... Bb4 {[%clk 0:01:46.7]} 29. Bxb4 {[%clk 0:00:40.8]}
29... Nxb4 {[%clk 0:01:46.1]} 30. Qa3 {[%clk 0:00:41.2]} 30... a5 {[%clk
0:01:41.9]} 31. Kf2 {[%clk 0:00:40.7]} 31... Rc1 {[%clk 0:01:33.2]} 32. Qb3
{[%clk 0:00:37.5]} 32... Qc5 {[%clk 0:01:25.3]} 33. f5 {[%clk 0:00:37.7]} 33...
e5 {[%clk 0:01:20.4]} 34. g5 {[%clk 0:00:37.4]} 34... Ra1 {[%clk 0:01:13.3]} 35.
g6 {[%clk 0:00:36]} 35... Qe7 {[%clk 0:00:35.9]} 36. Ng2 {[%clk 0:00:34.1]}
36... a4 {[%clk 0:00:27.5]} 37. Qxf7+ {[%clk 0:00:29.6]} 37... Qxf7 {[%clk
0:00:28]} 38. gxf7+ {[%clk 0:00:30.1]} 38... Kxf7 {[%clk 0:00:28.7]} 39. Rg3
{[%clk 0:00:20.3]} 39... Rb1 {[%clk 0:00:28.1]} 40. Nh4 {[%clk 0:00:20.1]} 40...
Rxb2 {[%clk 0:00:26.1]} 41. Nf3 {[%clk 0:00:20.7]} 41... Nxd3+ {[%clk
0:00:25.3]} 42. Kf1 {[%clk 0:00:20.4]} 42... Rb1+ {[%clk 0:00:22.6]} 43. Kg2
{[%clk 0:00:18.2]} 43... Nf4+ {[%clk 0:00:22.1]} 44. Kf2 {[%clk 0:00:17.6]}
44... Bxe2 {[%clk 0:00:13.4]} 45. Nxe5+ {[%clk 0:00:15.4]} 45... Kf6 {[%clk
0:00:12.2]} 46. Nd7+ {[%clk 0:00:15.6]} 46... Ke7 {[%clk 0:00:12.2]} 47. Rxg7+
{[%clk 0:00:14.8]} 47... Kd8 {[%clk 0:00:10.4]} 48. f6 {[%clk 0:00:11.5]} 48...
Rf1+ {[%clk 0:00:09.7]} 49. Kg3 {[%clk 0:00:10.5]} 49... Nh5+ {[%clk 0:00:08.3]}
50. Kh2 {[%clk 0:00:08.2]} 50... Nxf6 {[%clk 0:00:05.3]} 51. Nxf6 {[%clk
0:00:05.4]} 51... Rxf6 {[%clk 0:00:06.2]} 52. Rxh7 {[%clk 0:00:05.1]} 52... d3
{[%clk 0:00:05.9]} 53. Rh8+ {[%clk 0:00:01.6]} 53... Kd7 {[%clk 0:00:05.5]} 54.
Rh7+ {[%clk 0:00:01.8]} 54... Kc6 {[%clk 0:00:05.5]} 55. Rh8 {[%clk 0:00:01]}
55... d2 {[%clk 0:00:05.2]} 56. Rd8 {[%clk 0:00:01.6]} 56... Rd6 {[%clk
0:00:05.8]} 57. Rc8+ {[%clk 0:00:00.2]} 57... Kd7 {[%clk 0:00:06.2]} 0-1